[Event "Konyaalti Open-B 2019"]
[Site "Konyaalti"]
[Date "2019.11.21"]
[Round "8.15"]
[White "Ozdemir, Isa Serdar"]
[Black "Akcun, Fayik"]
[Result "*"]
[ECO "E94"]
[WhiteElo "1523"]
[BlackElo "1676"]
[Annotator "NA"]
[PlyCount "112"]
[EventDate "2019.11.20"]
[EventType "swiss"]
[EventCountry "TUR"]
[SourceTitle "playchess.com"]
[Source "ChessBase"]
[SourceQuality "1"]
[TimeControl "5400+30"]

1. d4 {[%emt 0:00:30]} Nf6 {[%emt 0:01:30]} 2. Nf3 {[%emt 0:00:00]} g6 {[%emt 0:00:30]} 3. c4 {[%emt 0:00:00]} Bg7 {[%emt 0:06:30]} 4. Nc3 {[%emt 0:00:30]} d6 {[%emt 0:01:30]} 5. e4 {[%emt 0:00:30]} O-O {[%emt 0:00:30]} 6. Be2 {[%emt 0:00:30]} e5 {[%emt 0:07:30]} 7. d5 {[%emt 0:05:30]} a5 {[%emt 0:08:30]} 8. O-O {[%emt 0:11:30]} Na6 {[%emt 0:03:30]} 9. Qc2 {[%emt 0:04:30]} Nc5 {[%emt 0:00:30]} 10. a4 {[%emt 0:02:30]} Na6 {[%emt 0:16:30]} 11. Na2 {[%emt 0:02:30]} Nd7 {[%emt 0:00:30]} 12. Bd2 {[%emt 0:17:30]} b6 {[%emt 0:02:30]} 13. b4 {[%emt 0:02:30]} axb4 {[%emt 0:00:30]} 14. Nxb4 {[%emt 0:00:30]} Ndc5 {[%emt 0:07:30]} 15. Ne1 {[%emt 0:03:30]} f5 {[%emt 0:04:30]} 16. f3 {[%emt 0:02:30]} fxe4 {[%emt 0:00:30]} 17. fxe4 {[%emt 0:00:30]} Rxf1+ {[%emt 0:00:30]} 18. Bxf1 {[%emt 0:00:30]} Qh4 {[%emt 0:01:30]} 19. Nxa6 {[%emt 0:06:30]} Rxa6 {[%emt 0:01:30]} 20. Bd3 {[%emt 0:07:30]} Bg4 {[%emt 0:02:30]} 21. Be3 {[%emt 0:15:11]} Bh6 {[%emt 0:02:30]} 22. Bf2 {[%emt 0:02:16]} Qf6 {[%emt 0:03:30]} 23. Bxc5 {[%emt 0:04:43]} dxc5 {[%emt 0:00:30]} 24. Qf2 {[%emt 0:00:43]} Qe7 {[%emt 0:01:30]} 25. Be2 {[%emt 0:02:34]} Bd7 {[%emt 0:00:30]} 26. Bd1 {[%emt 0:00:05]} Ra8 {[%emt 0:00:30]} 27. Nd3 {[%emt 0:01:27]} Rf8 {[%emt 0:05:33]} 28. Qg3 {[%emt 0:00:47]} Qg5 {[%emt 0:01:43]} 29. Qxg5 {[%emt 0:02:17]} Bxg5 {[%emt 0:00:02]} 30. Bf3 {[%emt 0:00:15]} Be3+ {[%emt 0:00:25]} 31. Kf1 {[%emt 0:00:09]} Bd4 {[%emt 0:00:37]} 32. Ra2 {[%emt 0:00:24]} Ra8 {[%emt 0:01:08]} 33. Bd1 {[%emt 0:01:18]} b5 {[%emt 0:03:01]} 34. a5 {[%emt 0:01:26]} bxc4 {[%emt 0:00:37]} 35. Nf2 {[%emt 0:01:01]} Bb5 {[%emt 0:01:08]} 36. g3 {[%emt 0:01:47]} c3+ {[%emt 0:01:21]} 37. Kg2 {[%emt 0:00:07]} c6 {[%emt 0:01:17]} 38. dxc6 {[%emt 0:00:57]} Bxc6 {[%emt 0:00:03]} 39. Bb3+ {[%emt 0:00:03]} Kg7 {[%emt 0:00:36]} 40. Bd5 {[%emt 0:00:22]} Bxd5 {[%emt 0:00:49]} 41. exd5 {[%emt 0:00:01]} c4 {[%emt 0:04:24]} 42. Ne4 {[%emt 0:00:34]} Rxa5 {[%emt 0:01:21]} 43. Rc2 {[%emt 0:01:26]} Rxd5 {[%emt 0:00:51]} 44. Nxc3 {[%emt 0:00:51]} Bxc3 {[%emt 0:00:34]} 45. Rxc3 {[%emt 0:00:01]} Rd4 {[%emt 0:00:26]} 46. Kf2 {[%emt 0:00:26]} Kf6 {[%emt 0:00:23]} 47. h4 {[%emt 0:00:30]} Ke6 {[%emt 0:00:14]} 48. Ra3 {[%emt 0:00:43]} Kd5 {[%emt 0:00:56]} 49. Ra5+ {[%emt 0:00:29]} Ke4 {[%emt 0:00:23]} 50. Ra4 {[%emt 0:00:52]} Kd3 {[%emt 0:00:18]} 51. Ra1 {[%emt 0:00:42]} c3 {[%emt 0:00:19]} 52. Ke1 {[%emt 0:00:21]} Re4+ {[%emt 0:00:38]} 53. Kf2 {[%emt 0:00:06]} c2 {[%emt 0:00:26]} 54. Ra3+ {[%emt 0:00:09]} Kd2 {[%emt 0:00:09]} 55. Kf3 {[%emt 0:01:10]} Rd4 {[%emt 0:00:26]} 56. Ra2 {[%emt 0:00:15]} Kd1 {[%emt 0:00:09]} *

[Event "Konyaalti Open-B 2019"]
[Site "Konyaalti"]
[Date "2019.11.23"]
[Round "9.11"]
[White "Demir, Hilmi Mustafa"]
[Black "Egeli, Sercan Veli"]
[Result "1-0"]
[ECO "B01"]
[WhiteElo "1818"]
[BlackElo "1478"]
[Annotator "NA"]
[PlyCount "125"]
[EventDate "2019.11.20"]
[EventType "swiss"]
[EventCountry "TUR"]
[SourceTitle "playchess.com"]
[Source "ChessBase"]
[SourceQuality "1"]
[TimeControl "5400+30"]

1. e4 {[%emt 0:00:30]} d5 {[%emt 0:00:30]} 2. exd5 {[%emt 0:00:30]} Nf6 {[%emt 0:00:30]} 3. d4 {[%emt 0:00:30]} Nxd5 {[%emt 0:00:00]} 4. Nf3 {[%emt 0:00:30]} Bf5 {[%emt 0:00:00]} 5. Bd3 {[%emt 0:01:30]} Bxd3 {[%emt 0:04:30]} 6. Qxd3 {[%emt 0:00:00]} Nc6 {[%emt 0:01:30] B01: Scandinavian Defence} (6... e6 7. O-O Nc6 8. c4 Nb6 9. Nc3 Be7 10. Bf4 g5 11. Bg3 g4 12. Ne5 Nxd4 13. c5 Bxc5 14. Rad1 O-O {1-0 (25) Topalov,V (2801)-Kamsky,G (2686) Wijk aan Zee 2006}) 7. a3 {[%emt 0:03:00]} e6 {[%emt 0:00:30]} 8. c4 {[%emt 0:01:30]} Nb6 {[%emt 0:00:00]} 9. O-O {[%emt 0:01:30]} Be7 {[%emt 0:01:00]} 10. b4 {[%emt 0:02:30]} Bf6 $146 {[%emt 0:01:30]} ({Predecessor:} 10... a6 11. Bb2 Bf6 12. Ra2 O-O 13. Nbd2 Nxd4 14. Bxd4 {½-½ (47) Maryasin,B (2334)-Jurcisin,I (2037) Prague 2014}) 11. Bb2 {[%emt 0:02:30]} Na4 {[%emt 0:01:30]} 12. Ra2 {[%emt 0:01:30]} Nxb2 {[%emt 0:01:30]} 13. Rxb2 {[%emt 0:00:30]} Nxd4 {[%emt 0:24:30]} 14. Rd2 {[%emt 0:02:30]} Nxf3+ {[%emt 0:00:30]} 15. Qxf3 {[%emt 0:00:00]} Qc8 {[%emt 0:00:30]} 16. Rfd1 {[%emt 0:01:00]} O-O {[%emt 0:02:30]} 17. c5 {[%emt 0:03:30]} c6 {[%emt 0:02:30]} 18. Nc3 {[%emt 0:00:30]} Bxc3 {[%emt 0:03:30]} 19. Qxc3 {[%emt 0:00:30]} Qc7 {[%emt 0:01:30]} 20. Rd7 {[%emt 0:03:30]} Rad8 {[%emt 0:02:30]} 21. Qd2 {[%emt 0:01:30]} Rxd7 {[%emt 0:00:30]} 22. Qxd7 {[%emt 0:00:00]} Qxd7 {[%emt 0:00:30]} 23. Rxd7 {[%emt 0:00:00]} Rb8 {[%emt 0:00:00]} 24. Kf1 {[%emt 0:00:30]} Kf8 {[%emt 0:00:00]} 25. Ke2 {[%emt 0:00:30]} Ke8 {[%emt 0:00:30]} 26. Rc7 {[%emt 0:00:30]} a5 {[%emt 0:04:30]} 27. f4 {[%emt 0:01:30]} axb4 {[%emt 0:00:30]} 28. axb4 {[%emt 0:00:30]} b6 {[%emt 0:00:30]} 29. Rxc6 {[%emt 0:04:30]} bxc5 {[%emt 0:00:30]} 30. bxc5 {[%emt 0:00:30]} Kd7 {[%emt 0:00:30]} 31. Ra6 {[%emt 0:00:30]} Rc8 {[%emt 0:00:30]} 32. Ra5 {[%emt 0:00:30]} Kc6 {[%emt 0:02:30]} 33. Kd3 {[%emt 0:02:30]} Rc7 {[%emt 0:04:30]} 34. Kc4 {[%emt 0:01:30]} Rb7 {[%emt 0:00:30]} 35. Ra6+ {[%emt 0:01:30]} Kc7 {[%emt 0:00:30]} 36. g3 {[%emt 0:03:30]} Rb2 {[%emt 0:03:30]} 37. Ra7+ {[%emt 0:01:30]} Kc6 {[%emt 0:00:00]} 38. Rxf7 {[%emt 0:00:30]} Rxh2 {[%emt 0:01:00]} 39. Rxg7 {[%emt 0:00:30]} Rg2 {[%emt 0:04:30]} 40. Kd4 {[%emt 0:08:30]} h5 {[%emt 0:02:30]} 41. Rg5 {[%emt 0:00:30]} Rh2 {[%emt 0:04:30]} 42. Ke5 {[%emt 0:00:30]} h4 {[%emt 0:03:30]} 43. gxh4 {[%emt 0:03:30]} Rxh4 {[%emt 0:00:00]} 44. Rg6 {[%emt 0:01:30]} Rh5+ {[%emt 0:05:00]} 45. Kxe6 {[%emt 0:01:30]} Rxc5 {[%emt 0:00:30]} 46. f5 {[%emt 0:02:30]} Rc1 {[%emt 0:00:00]} 47. Kf7+ {[%emt 0:01:30]} Kd7 {[%emt 0:00:00]} 48. Re6 {[%emt 0:00:30]} Rf1 {[%emt 0:01:30]} 49. f6 {[%emt 0:00:30]} Rg1 {[%emt 0:00:57]} 50. Re4 {[%emt 0:00:00]} Rd1 {[%emt 0:00:15]} 51. Kg7 {[%emt 0:02:00]} Rg1+ {[%emt 0:00:18]} 52. Kf8 {[%emt 0:00:30]} Rf1 {[%emt 0:07:59]} 53. f7 {[%emt 0:03:30]} Rf2 {[%emt 0:00:24]} 54. Re1 {[%emt 0:00:30]} Rf3 {[%emt 0:00:30]} 55. Rd1+ {[%emt 0:00:30]} Kc7 {[%emt 0:02:25]} 56. Rd4 {[%emt 0:00:30]} Rg3 {[%emt 0:02:40]} 57. Ke7 {[%emt 0:00:00]} Re3+ {[%emt 0:00:13]} 58. Kf6 {[%emt 0:00:00]} Rf3+ {[%emt 0:00:09]} 59. Ke6 {[%emt 0:00:30]} Rf1 {[%emt 0:01:18]} 60. Rd5 {[%emt 0:00:00]} Re1+ {[%emt 0:00:44]} 61. Re5 {[%emt 0:00:00]} Rf1 {[%emt 0:00:05]} 62. Rf5 {[%emt 0:00:30]} Re1+ {[%emt 0:00:07]} 63. Kf6 {[%emt 0:00:30]} 1-0

[Event "Konyaalti Open-B 2019"]
[Site "Konyaalti"]
[Date "2019.11.23"]
[Round "9.12"]
[White "Akcun, Fayik"]
[Black "Kazik, Oguz Kagan"]
[Result "0-1"]
[ECO "B72"]
[WhiteElo "1676"]
[BlackElo "1638"]
[Annotator "NA"]
[PlyCount "116"]
[EventDate "2019.11.20"]
[EventType "swiss"]
[EventCountry "TUR"]
[SourceTitle "playchess.com"]
[Source "ChessBase"]
[SourceQuality "1"]
[TimeControl "5400+30"]

1. e4 {[%emt 0:01:30]} c5 {[%emt 0:00:30]} 2. Nf3 {[%emt 0:00:30]} d6 {[%emt 0:00:00]} 3. d4 {[%emt 0:00:00]} cxd4 {[%emt 0:00:00]} 4. Nxd4 {[%emt 0:00:00]} Nf6 {[%emt 0:00:00]} 5. Nc3 {[%emt 0:00:30]} g6 {[%emt 0:00:00]} 6. Be3 {[%emt 0:00:30]} Bg7 {[%emt 0:00:00]} 7. Bc4 {[%emt 0:01:30]} O-O {[%emt 0:02:00]} 8. Bb3 {[%emt 0:04:30]} Ng4 {[%emt 0:01:30]} 9. Qd2 {[%emt 0:04:30]} Nxe3 {[%emt 0:05:30]} 10. Qxe3 {[%emt 0:00:30]} Nc6 {[%emt 0:00:30]} 11. Nce2 {[%emt 0:00:30]} Bd7 {[%emt 0:05:30]} 12. c3 {[%emt 0:11:30]} Na5 {[%emt 0:00:30]} 13. O-O {[%emt 0:00:30]} Qc7 {[%emt 0:00:30]} 14. Rfd1 {[%emt 0:00:30]} Rab8 {[%emt 0:00:30]} 15. Nc2 {[%emt 0:03:30]} Nc4 {[%emt 0:08:30]} 16. Qc1 {[%emt 0:14:30]} b5 {[%emt 0:19:30]} 17. Nb4 {[%emt 0:04:30]} Qb7 {[%emt 0:03:30]} 18. Bxc4 {[%emt 0:04:30]} bxc4 {[%emt 0:00:30]} 19. Qg5 {[%emt 0:18:30]} Qxe4 {[%emt 0:03:30]} 20. Ng3 {[%emt 0:01:30]} Qe5 {[%emt 0:00:30]} 21. Qh4 {[%emt 0:01:30]} e6 {[%emt 0:12:30]} 22. Qe7 {[%emt 0:04:30]} Ba4 {[%emt 0:02:30]} 23. Re1 {[%emt 0:07:40]} Qb5 {[%emt 0:03:30]} 24. Qxa7 {[%emt 0:01:52]} Rb7 {[%emt 0:01:30]} 25. Qe3 {[%emt 0:00:02]} d5 {[%emt 0:00:30]} 26. Ne2 {[%emt 0:00:02]} e5 {[%emt 0:05:30]} 27. a3 {[%emt 0:01:53]} Rd8 {[%emt 0:01:30]} 28. Rac1 {[%emt 0:02:27]} Qb6 {[%emt 0:01:30]} 29. Qxb6 {[%emt 0:01:31]} Rxb6 {[%emt 0:01:30]} 30. f4 {[%emt 0:00:09]} f6 {[%emt 0:03:40]} 31. Kf2 {[%emt 0:00:55]} Bh6 {[%emt 0:03:27]} 32. g3 {[%emt 0:00:07]} g5 {[%emt 0:07:06]} 33. h4 {[%emt 0:00:49]} gxf4 {[%emt 0:00:20]} 34. gxf4 {[%emt 0:00:02]} Kf7 {[%emt 0:04:37]} 35. Rg1 {[%emt 0:01:41]} Ke6 {[%emt 0:01:13]} 36. Rg3 {[%emt 0:01:08]} Kd6 {[%emt 0:00:34]} 37. Rcg1 {[%emt 0:00:31]} Rbb8 {[%emt 0:00:50]} 38. Rf3 {[%emt 0:01:46]} Ke6 {[%emt 0:00:40]} 39. fxe5 {[%emt 0:01:15]} fxe5 {[%emt 0:00:04]} 40. Rg4 {[%emt 0:03:04]} Rf8 {[%emt 0:00:20]} 41. Rgg3 {[%emt 0:00:23]} Rxf3+ {[%emt 0:01:26]} 42. Rxf3 {[%emt 0:00:28]} Rf8 {[%emt 0:00:01]} 43. Na6 {[%emt 0:00:51]} Rxf3+ {[%emt 0:01:22]} 44. Kxf3 {[%emt 0:00:02]} Bd1 {[%emt 0:00:02]} 45. a4 {[%emt 0:02:14]} d4 {[%emt 0:00:45]} 46. cxd4 {[%emt 0:00:49]} exd4 {[%emt 0:00:05]} 47. Kf2 {[%emt 0:00:25]} Be3+ {[%emt 0:01:18]} 48. Ke1 {[%emt 0:00:37]} Bc2 {[%emt 0:00:10]} 49. Nc7+ {[%emt 0:00:43]} Kd6 {[%emt 0:00:36]} 50. Nb5+ {[%emt 0:00:03]} Kc5 {[%emt 0:00:06]} 51. Nc7 {[%emt 0:01:26]} Bxa4 {[%emt 0:00:30]} 52. Ne6+ {[%emt 0:00:10]} Kd5 {[%emt 0:00:12]} 53. Nf8 {[%emt 0:00:12]} Bc2 {[%emt 0:00:10]} 54. h5 {[%emt 0:00:12]} h6 {[%emt 0:01:54]} 55. Nd7 {[%emt 0:00:23]} Bf5 {[%emt 0:00:45]} 56. Nb6+ {[%emt 0:00:12]} Kc5 {[%emt 0:00:05]} 57. Ng3 {[%emt 0:00:51]} Bg4 {[%emt 0:00:30]} 58. Na4+ {[%emt 0:01:31]} Kb5 {[%emt 0:00:01]} 0-1

[Event "Konyaalti Open-B 2019"]
[Site "Konyaalti"]
[Date "2019.11.23"]
[Round "9.13"]
[White "Guler, Muhammed Talha"]
[Black "Yildiz, Tunahan"]
[Result "1-0"]
[ECO "A01"]
[WhiteElo "1646"]
[BlackElo "1752"]
[Annotator "NA"]
[PlyCount "75"]
[EventDate "2019.11.20"]
[EventType "swiss"]
[EventCountry "TUR"]
[SourceTitle "playchess.com"]
[Source "ChessBase"]
[SourceQuality "1"]
[TimeControl "5400+30"]

1. b3 {[%emt 0:02:30]} a5 {[%emt 0:03:30]} 2. a4 {[%emt 0:01:30]} Nf6 {[%emt 0:00:30]} 3. Bb2 {[%emt 0:00:30]} g6 {[%emt 0:01:30]} 4. g3 {[%emt 0:01:30]} Bg7 {[%emt 0:01:30]} 5. Bg2 {[%emt 0:00:30]} O-O {[%emt 0:01:30]} 6. e4 {[%emt 0:02:30]} d6 {[%emt 0:04:30]} 7. Ne2 {[%emt 0:02:30]} e5 {[%emt 0:01:30]} 8. O-O {[%emt 0:00:30]} Re8 {[%emt 0:01:30]} 9. d3 {[%emt 0:02:30]} c6 {[%emt 0:00:30]} 10. Nd2 {[%emt 0:01:30]} Qc7 {[%emt 0:02:30]} 11. h3 {[%emt 0:05:30]} Na6 {[%emt 0:02:30]} 12. f4 {[%emt 0:01:30]} exf4 {[%emt 0:15:30]} 13. gxf4 {[%emt 0:05:30]} Nd5 {[%emt 0:11:30]} 14. Qc1 {[%emt 0:09:30]} Ne3 {[%emt 0:03:30]} 15. Rf3 {[%emt 0:00:30]} Nxg2 {[%emt 0:02:30]} 16. Kxg2 {[%emt 0:00:30]} f6 {[%emt 0:00:00]} 17. Ng3 {[%emt 0:00:30]} Qe7 {[%emt 0:13:00]} 18. f5 {[%emt 0:02:30]} g5 {[%emt 0:05:30]} 19. h4 {[%emt 0:02:30]} gxh4 {[%emt 0:02:30]} 20. Nh5 {[%emt 0:03:30]} Qf7 {[%emt 0:00:00]} 21. Nf4 {[%emt 0:07:30]} Bh6 {[%emt 0:04:00]} 22. Qh1 {[%emt 0:00:30]} Bg5 {[%emt 0:03:01]} 23. Kf2 {[%emt 0:01:30]} Kf8 {[%emt 0:03:48]} 24. Nc4 {[%emt 0:06:30]} Ke7 {[%emt 0:00:54]} 25. Re1 {[%emt 0:02:30]} Qg7 {[%emt 0:03:00]} 26. Ng2 {[%emt 0:03:30]} b5 {[%emt 0:03:51]} 27. axb5 {[%emt 0:05:30]} cxb5 {[%emt 0:00:04]} 28. Nb6 {[%emt 0:02:30]} Rb8 {[%emt 0:01:04]} 29. Nd5+ {[%emt 0:00:30]} Kd7 {[%emt 0:00:17]} 30. Ngf4 {[%emt 0:01:30]} Qf7 {[%emt 0:03:10]} 31. Ne6 {[%emt 0:01:30]} Nc5 {[%emt 0:01:24]} 32. Nxc5+ {[%emt 0:01:30]} dxc5 {[%emt 0:00:06]} 33. Qh2 {[%emt 0:03:42]} Rb7 {[%emt 0:00:54]} 34. d4 {[%emt 0:04:25]} c4 {[%emt 0:02:39]} 35. bxc4 {[%emt 0:00:58]} bxc4 {[%emt 0:00:07]} 36. Ba3 {[%emt 0:00:02]} Rxe4 {[%emt 0:01:19]} 37. Qd6+ {[%emt 0:00:13]} Ke8 {[%emt 0:00:05]} 38. Rxe4+ {[%emt 0:00:03]} 1-0

[Event "Konyaalti Open-B 2019"]
[Site "Konyaalti"]
[Date "2019.11.23"]
[Round "9.14"]
[White "Aksenov, Konstantin Al."]
[Black "Var, Sefa"]
[Result "1/2-1/2"]
[ECO "D11"]
[WhiteElo "1801"]
[BlackElo "1745"]
[Annotator "NA"]
[PlyCount "189"]
[EventDate "2019.11.20"]
[EventType "swiss"]
[EventCountry "TUR"]
[SourceTitle "playchess.com"]
[Source "ChessBase"]
[SourceQuality "1"]
[TimeControl "5400+30"]

1. d4 {[%emt 0:00:30]} d5 {[%emt 0:10:30]} 2. Nf3 {[%emt 0:00:30]} Nf6 {[%emt 0:00:30]} 3. c4 {[%emt 0:00:00]} c6 {[%emt 0:00:00]} 4. g3 {[%emt 0:00:00]} Bf5 {[%emt 0:00:00]} 5. Qb3 {[%emt 0:00:30]} Nbd7 {[%emt 0:05:30]} 6. c5 {[%emt 0:01:30]} b6 {[%emt 0:01:30]} 7. cxb6 {[%emt 0:00:30]} axb6 {[%emt 0:02:30]} 8. Nc3 {[%emt 0:00:30]} e6 {[%emt 0:02:30]} 9. Bg2 {[%emt 0:00:00]} Be7 {[%emt 0:03:30]} 10. O-O {[%emt 0:00:00]} O-O {[%emt 0:01:30]} 11. Nh4 {[%emt 0:00:30]} Bg4 {[%emt 0:01:30]} 12. h3 {[%emt 0:00:30]} Bh5 {[%emt 0:00:30]} 13. Nf3 {[%emt 0:00:30]} c5 {[%emt 0:02:30]} 14. g4 {[%emt 0:02:30]} Bg6 {[%emt 0:00:30]} 15. Bf4 {[%emt 0:02:30]} h5 {[%emt 0:04:30]} 16. g5 {[%emt 0:01:30]} Ne4 {[%emt 0:00:30]} 17. h4 {[%emt 0:00:30]} cxd4 {[%emt 0:08:30]} 18. Nxd4 {[%emt 0:03:30]} Ndc5 {[%emt 0:07:30]} 19. Qd1 {[%emt 0:00:30]} Qd7 {[%emt 0:01:30]} 20. Nxe4 {[%emt 0:03:30]} Nxe4 {[%emt 0:01:30]} 21. Nf3 {[%emt 0:00:30]} Qb5 {[%emt 0:10:30]} 22. Be5 {[%emt 0:03:30]} Nd6 {[%emt 0:12:30]} 23. a4 {[%emt 0:06:30]} Qd7 {[%emt 0:00:30]} 24. Bd4 {[%emt 0:00:30]} Qb7 {[%emt 0:04:37]} 25. Ne5 {[%emt 0:00:30]} Nf5 {[%emt 0:07:17]} 26. Nxg6 {[%emt 0:09:30]} fxg6 {[%emt 0:00:37]} 27. Bh3 {[%emt 0:00:30]} Qc6 {[%emt 0:00:38]} 28. Bxf5 {[%emt 0:00:30]} Rxf5 {[%emt 0:00:36]} 29. f4 {[%emt 0:00:30]} Bd6 {[%emt 0:00:32]} 30. e3 {[%emt 0:00:30]} Raf8 {[%emt 0:00:00]} 31. Qb3 {[%emt 0:00:30]} Qd7 {[%emt 0:02:06]} 32. Qb5 {[%emt 0:02:30]} Qxb5 {[%emt 0:01:50]} 33. axb5 {[%emt 0:00:00]} Rb8 {[%emt 0:01:25]} 34. Rac1 {[%emt 0:00:00]} Rf7 {[%emt 0:01:32]} 35. Rc6 {[%emt 0:00:30]} Rd7 {[%emt 0:00:02]} 36. Rfc1 {[%emt 0:00:30]} Kf7 {[%emt 0:00:19]} 37. Bxb6 {[%emt 0:01:30]} Ke7 {[%emt 0:00:44]} 38. Bd4 {[%emt 0:00:30]} Rxb5 {[%emt 0:00:29]} 39. Bxg7 {[%emt 0:00:30]} Rdb7 {[%emt 0:01:13]} 40. R1c2 {[%emt 0:01:30]} Kd7 {[%emt 0:00:39]} 41. Bd4 {[%emt 0:01:30]} Rb4 {[%emt 0:00:41]} 42. Bf6 {[%emt 0:03:30]} Rb8 {[%emt 0:01:08]} 43. Ra6 {[%emt 0:01:30]} R4b6 {[%emt 0:00:21]} 44. Ra7+ {[%emt 0:00:30]} R6b7 {[%emt 0:00:04]} 45. Rxb7+ {[%emt 0:00:30]} Rxb7 {[%emt 0:00:01]} 46. Kf2 {[%emt 0:00:30]} Rb4 {[%emt 0:01:31]} 47. Bc3 {[%emt 0:01:30]} Rb6 {[%emt 0:01:28]} 48. Bd4 {[%emt 0:00:30]} Rb4 {[%emt 0:00:17]} 49. Kf3 {[%emt 0:00:30]} Rb5 {[%emt 0:00:46]} 50. Rc1 {[%emt 0:00:30]} Ra5 {[%emt 0:00:26]} 51. Rb1 {[%emt 0:00:30]} Bb4 {[%emt 0:00:32]} 52. Ke2 {[%emt 0:03:30]} Ra8 {[%emt 0:00:47]} 53. Kd3 {[%emt 0:00:30]} Ra6 {[%emt 0:00:37]} 54. Bc3 {[%emt 0:00:30]} Bxc3 {[%emt 0:00:53]} 55. Kxc3 {[%emt 0:00:00]} Rc6+ {[%emt 0:00:17]} 56. Kd3 {[%emt 0:00:00]} Rb6 {[%emt 0:00:04]} 57. b4 {[%emt 0:00:30]} Kc6 {[%emt 0:00:17]} 58. Kd4 {[%emt 0:00:00]} Kd6 {[%emt 0:00:01]} 59. Rb2 {[%emt 0:01:00]} Rb5 {[%emt 0:00:08]} 60. Kc3 {[%emt 0:01:30]} e5 {[%emt 0:00:09]} 61. Ra2 {[%emt 0:01:30]} Rb6 {[%emt 0:02:00]} 62. Ra8 {[%emt 0:00:00]} exf4 {[%emt 0:01:50]} 63. exf4 {[%emt 0:00:00]} Ke7 {[%emt 0:01:22]} 64. Ra7+ {[%emt 0:00:30]} Ke6 {[%emt 0:00:07]} 65. Ra5 {[%emt 0:01:30]} Rc6+ {[%emt 0:00:51]} 66. Rc5 {[%emt 0:00:30]} Rb6 {[%emt 0:00:07]} 67. b5 {[%emt 0:00:30]} Kf5 {[%emt 0:00:48]} 68. Rxd5+ {[%emt 0:00:00]} Kg4 {[%emt 0:00:16]} 69. Kc4 {[%emt 0:01:00]} Kxh4 {[%emt 0:00:19]} 70. Kc5 {[%emt 0:00:00]} Rb8 {[%emt 0:00:19]} 71. Rd6 {[%emt 0:00:00]} Kg3 {[%emt 0:00:25]} 72. Rxg6 {[%emt 0:00:30]} Kxf4 {[%emt 0:00:19]} 73. b6 {[%emt 0:00:00]} Kf5 {[%emt 0:01:33]} 74. Rg7 {[%emt 0:00:00]} h4 {[%emt 0:00:29]} 75. Kc6 {[%emt 0:00:30]} Rc8+ {[%emt 0:00:18]} 76. Kb7 {[%emt 0:00:00]} Rc3 {[%emt 0:00:51]} 77. Kb8 {[%emt 0:01:00]} h3 {[%emt 0:00:18]} 78. b7 {[%emt 0:00:00]} h2 {[%emt 0:00:34]} 79. Rh7 {[%emt 0:00:00]} Rc2 {[%emt 0:00:26]} 80. Ka7 {[%emt 0:02:30]} Ra2+ {[%emt 0:00:08]} 81. Kb6 {[%emt 0:00:30]} Rb2+ {[%emt 0:00:12]} 82. Kc6 {[%emt 0:02:30]} Rc2+ {[%emt 0:00:27]} 83. Kd6 {[%emt 0:01:30]} Rd2+ {[%emt 0:00:55]} 84. Kc7 {[%emt 0:05:30]} Rc2+ {[%emt 0:00:06]} 85. Kd8 {[%emt 0:00:00]} Rd2+ {[%emt 0:01:13]} 86. Ke8 {[%emt 0:01:00]} Rb2 {[%emt 0:00:14]} 87. Rxh2 {[%emt 0:02:30]} Rxh2 {[%emt 0:00:06]} 88. Kd8 {[%emt 0:00:00]} Rb2 {[%emt 0:01:17]} 89. Kc7 {[%emt 0:00:00]} Rc2+ {[%emt 0:00:10]} 90. Kd7 {[%emt 0:00:30]} Rd2+ {[%emt 0:00:13]} 91. Kc7 {[%emt 0:00:30]} Rc2+ {[%emt 0:00:02]} 92. Kd7 {[%emt 0:00:00]} Rb2 {[%emt 0:00:01]} 93. Kc7 {[%emt 0:00:00]} Kxg5 {[%emt 0:00:01]} 94. b8=Q {[%emt 0:00:30]} Rxb8 {[%emt 0:00:14]} 95. Kxb8 {[%emt 0:00:00]} 1/2-1/2

[Event "Konyaalti Open-B 2019"]
[Site "Konyaalti"]
[Date "2019.11.23"]
[Round "9.15"]
[White "Cekli, Cem"]
[Black "Kartal, Efe Onur"]
[Result "1-0"]
[ECO "D35"]
[WhiteElo "1812"]
[BlackElo "1745"]
[Annotator "NA"]
[PlyCount "73"]
[EventDate "2019.11.20"]
[EventType "swiss"]
[EventCountry "TUR"]
[SourceTitle "playchess.com"]
[Source "ChessBase"]
[SourceQuality "1"]
[TimeControl "5400+30"]

1. d4 {[%emt 0:00:30]} Nf6 {[%emt 0:00:30]} 2. c4 {[%emt 0:00:00]} e6 {[%emt 0:00:00]} 3. Nc3 {[%emt 0:00:00]} d5 {[%emt 0:00:00]} 4. cxd5 {[%emt 0:00:30]} exd5 {[%emt 0:00:30]} 5. Bg5 {[%emt 0:00:30]} Be7 {[%emt 0:00:00]} 6. Qc2 {[%emt 0:00:30]} O-O {[%emt 0:01:00]} 7. e3 {[%emt 0:00:30]} Re8 {[%emt 0:04:30]} 8. Bd3 {[%emt 0:00:30]} c5 {[%emt 0:02:30]} 9. dxc5 {[%emt 0:13:30]} d4 {[%emt 0:02:30]} 10. O-O-O {[%emt 0:07:30]} dxc3 {[%emt 0:15:30]} 11. Bxf6 {[%emt 0:01:30]} Bxf6 {[%emt 0:04:30]} 12. Bxh7+ {[%emt 0:00:30]} Kh8 {[%emt 0:00:00]} 13. Rxd8 {[%emt 0:00:00]} cxb2+ {[%emt 0:00:00]} 14. Kb1 {[%emt 0:01:00]} Rxd8 {[%emt 0:00:30]} 15. Be4 {[%emt 0:00:30]} Nc6 {[%emt 0:00:30]} 16. Ne2 {[%emt 0:07:30]} Be6 {[%emt 0:01:30]} 17. Bxc6 {[%emt 0:00:30]} bxc6 {[%emt 0:00:30]} 18. Nf4 {[%emt 0:01:30]} Bc8 {[%emt 0:07:30]} 19. Qa4 {[%emt 0:38:30]} Bf5+ {[%emt 0:01:30]} 20. e4 {[%emt 0:00:30]} Rd4 {[%emt 0:02:30]} 21. Qxd4 {[%emt 0:00:00]} Bxd4 {[%emt 0:00:00]} 22. exf5 {[%emt 0:00:00]} Bxc5 {[%emt 0:01:00]} 23. Kxb2 {[%emt 0:00:30]} Bxf2 {[%emt 0:00:00]} 24. Rd1 {[%emt 0:03:30]} Rb8+ {[%emt 0:04:00]} 25. Kc3 {[%emt 0:00:30]} c5 {[%emt 0:01:30]} 26. Rd7 {[%emt 0:00:30]} Rb4 {[%emt 0:01:30]} 27. g3 {[%emt 0:04:45]} Bd4+ {[%emt 0:00:30]} 28. Kd3 {[%emt 0:00:17]} Rb2 {[%emt 0:00:30]} 29. Rxf7 {[%emt 0:00:27]} Rxa2 {[%emt 0:01:30]} 30. Rf8+ {[%emt 0:06:16]} Kh7 {[%emt 0:00:00]} 31. Ke4 {[%emt 0:01:37]} g5 {[%emt 0:26:00]} 32. fxg6+ {[%emt 0:00:07]} Kg7 {[%emt 0:00:30]} 33. Rf7+ {[%emt 0:00:21]} Kg8 {[%emt 0:02:30]} 34. Ne6 {[%emt 0:00:27]} Re2+ {[%emt 0:00:30]} 35. Kd5 {[%emt 0:00:08]} Rxe6 {[%emt 0:00:30]} 36. Kxe6 {[%emt 0:00:05]} c4 {[%emt 0:00:30]} 37. Kd5 {[%emt 0:01:35]} 1-0